bitfinex-derivatives/quotes_BNBF0:USTF0_20250116
["timestamp","ask_amount","ask_price","bid_price","bid_amount"]
[1737034622440,1.01224211,710.01,707.93,1.03266562]
[1737034622640,1.01224211,710.01,707.94,0.25927458]
[1737034623533,5.90500692,716.43,707.94,0.25927458]
[1737034623534,1.01224211,710.26,708.05,1.03266562]
[1737034623734,1.47246013,710.01,708.06,0.25927458]
[1737034623943,1.01224211,710.26,708.06,0.25927458]
[1737034624338,1.47239783,710.01,708.07,0.25927458]
[1737034624535,1.01224211,710.12,708.08,0.25927458]
[1737034624842,1.01224211,710.12,708.09,0.25927458]
[1737034625034,1.01224211,710.12,708.1,0.25927458]
[1737034625238,1.01224211,710.12,708.11,0.25927458]
[1737034625437,1.01224211,710.12,708.12,0.25927458]
[1737034625639,1.01224211,709.83,708.25,1.03266562]
[1737034625838,1.01224211,709.83,708.26,0.86301957]
[1737034626041,1.01224211,709.83,708.27,0.25927458]
[1737034626243,1.01224211,709.83,708.28,0.25927458]
[1737034626444,1.01224211,709.76,708.26,0.25927458]
[1737034626641,1.01224211,709.76,708.27,0.25927458]
[1737034626842,1.01224211,709.76,708.25,0.25927458]
[1737034627042,1.01224211,709.76,708.26,0.25927458]
[1737034627342,1.01224211,709.76,708.27,0.25927458]
[1737034627543,1.01224211,709.67,708.28,0.25927458]
[1737034627843,1.01224211,709.67,708.29,0.25927458]
[1737034628042,1.01224211,709.67,708.02,1.03266562]
[1737034628236,1.01224211,709.67,708.29,1.3]
[1737034628843,1.01224211,709.56,708.29,1.3]
[1737034629240,0.28186879,709.55,708.29,1.3]
[1737034630744,1.2941109,709.55,708.29,1.3]
[1737034631746,1.01224211,709.48,708.29,1.3]
[1737034632346,1.01224211,709.52,708.29,1.3]
[1737034633642,1.01224211,709.47,708.29,1.3]
[1737034635041,1.01224211,709.41,708.29,1.3]
[1737034636144,1.01224211,709.44,708.29,1.3]
[1737034636943,1.01224211,709.45,708.29,1.3]
[1737034638446,1.01224211,709.35,708.29,1.3]
[1737034639353,1.01224211,709.34,708.29,1.3]
[1737034640651,1.47313539,709.46,708.29,1.3]
[1737034641748,1.01224211,709.26,708.29,1.3]
[1737034643249,1.01224211,709.44,708.29,1.3]
[1737034644150,1.47313539,709.46,708.29,1.3]
[1737034645351,1.01224211,709.44,708.29,1.3]
[1737034646049,0.28192044,709.42,708.29,1.3]
[1737034646649,1.01224211,709.41,708.29,1.3]
[1737034647951,0.28192044,709.42,708.29,1.3]
[1737034657964,1.02495195,709.41,708.29,1.3]
[1737034659065,1.02495195,709.31,708.29,1.3]
[1737034659864,1.02495195,709.29,708.29,1.3]
[1737034660366,1.47386328,709.28,708.29,1.3]
[1737034661167,1.02495195,709.14,708.29,1.3]
[1737034662272,1.02495195,709.08,708.29,1.3]
[1737034662967,0.28205959,709.07,708.29,1.3]
[1737034663168,1.02495195,708.97,708.29,1.3]
[1737034664272,1.02495195,708.98,708.29,1.3]
[1737034665471,0.28205959,709.07,708.29,1.3]
[1737034665472,1.02495195,708.93,708.29,1.3]
[1737034666571,0.28205959,709.07,708.29,1.3]
[1737034666572,1.02495195,708.94,708.29,1.3]
[1737034667868,1.02495195,709.06,708.29,1.3]
[1737034668871,0.28205959,709.07,708.29,1.3]
[1737034672575,1.47379046,709.06,708.29,1.3]
[1737034673474,0.28205959,709.07,708.29,1.3]
[1737034674080,1.4724809,709.06,708.29,1.3]
[1737034678886,0.28206755,709.05,708.29,1.3]
[1737034684384,1.03212829,708.94,708.29,1.3]
[1737034685389,0.28206755,709.05,708.29,1.3]
[1737034688791,1.03212829,709.0,708.29,1.3]
[1737034689687,1.03212829,709.03,708.29,1.3]
[1737034690693,0.28206755,709.05,708.29,1.3]
[1737034691586,1.03212829,709.03,708.29,1.3]
[1737034692386,1.03212829,709.02,708.29,1.3]
[1737034693515,0.28206755,709.05,708.29,1.3]
[1737034699697,0.28206755,709.05,708.3,0.25933174]
[1737034700199,0.28206755,709.05,707.67,7.29431385]
[1737034700401,0.28206755,709.05,708.31,0.25933014]
[1737034700593,0.28206755,709.05,708.32,0.25933014]
[1737034700797,0.28206755,709.05,707.74,0.25933014]
[1737034700999,0.28206755,709.05,707.73,0.60400323]
[1737034701000,0.28206755,709.05,707.75,0.25933067]
[1737034701198,0.28206755,709.05,707.76,0.25933067]
[1737034701398,0.28206755,709.05,707.75,0.25933067]
[1737034701594,0.28206755,709.05,707.74,4.48777338]
[1737034701595,0.28206755,709.05,707.84,1.05170574]
[1737034701794,0.28206755,709.05,707.85,0.25933067]
[1737034702301,0.28206755,709.05,707.75,0.86320633]
[1737034702493,0.28206755,709.05,707.76,0.25933067]
[1737034702795,0.28206755,709.05,707.77,0.25933067]
[1737034703000,0.28206755,709.05,707.78,0.25933067]
[1737034703201,0.28206755,709.05,707.74,1.318]
[1737034703498,0.28206755,709.05,707.8,1.04777435]
[1737034703701,0.28206755,709.05,707.81,7.27432436]
[1737034703902,0.28206755,709.05,707.82,4.11508499]
[1737034704101,0.28206755,709.05,707.83,3.76725931]
[1737034704301,0.28206755,709.05,707.84,4.11184211]
[1737034704602,0.28206755,709.05,707.85,0.86307024]
[1737034704903,0.28206755,709.05,707.95,1.04777435]
[1737034705101,0.28206755,709.05,707.96,0.86307024]
[1737034705402,0.28206755,709.05,707.97,0.25924372]
[1737034705601,0.28206755,709.05,707.98,0.25924372]
[1737034705802,1.03035621,710.04,707.99,0.25924372]
[1737034706005,0.28171394,709.94,708.0,0.25924372]
[1737034706204,0.28171394,709.94,708.01,0.25914342]
[1737034706402,0.28171394,709.94,707.8,1.04777435]
[1737034706598,0.28171394,709.94,707.81,3.49668077]
[1737034706797,0.28171394,709.94,707.82,3.49668077]
[1737034707003,0.28171394,709.94,707.83,3.49668077]
[1737034707203,0.28171394,709.94,707.85,0.28254573]
[1737034707499,0.28171394,709.94,707.86,3.49668077]
[1737034707801,0.28171394,709.94,707.87,3.49668077]
[1737034708002,0.28171394,709.94,707.88,3.49668077]
[1737034708204,0.28171394,709.94,707.89,3.49668077]
[1737034708404,0.28171394,709.94,707.99,1.04777435]
[1737034708804,0.28171394,709.94,708.0,0.60358042]
[1737034709107,0.28171394,709.94,708.01,1.85063356]
[1737034709407,0.28171394,709.94,708.02,4.35100829]
[1737034709707,0.28171394,709.94,708.03,4.35100829]
[1737034709999,0.28171394,709.94,708.04,2.4540768]
[1737034710197,0.28171394,709.94,708.05,0.86270406]
[1737034710401,0.28171394,709.94,708.06,0.86270406]
[1737034710705,0.28171394,709.94,708.07,0.86270406]
[1737034711004,0.28171394,709.94,708.08,0.86270406]
[1737034711204,0.28171394,709.94,708.09,0.25912364]
[1737034711406,0.28171394,709.94,708.1,0.25912364]
[1737034711604,0.28171394,709.94,708.11,0.25912364]
[1737034711903,0.28171394,709.94,708.12,0.25912364]
[1737034712106,0.28171394,709.94,708.13,0.25912364]
[1737034712403,0.28171394,709.94,708.14,0.25912364]
[1737034712601,0.28171394,709.94,708.15,0.25912364]
[1737034712801,0.28171394,709.94,708.16,0.25912364]
[1737034713000,0.28171394,709.94,707.85,0.28254573]
[1737034713197,0.28171394,709.94,708.17,0.25911102]
[1737034713401,0.28171394,709.94,707.87,0.6035544]
[1737034713600,0.28171394,709.94,707.88,0.86266542]
[1737034713907,0.28171394,709.94,707.89,0.86266542]
[1737034714204,0.28171394,709.94,707.9,0.86266542]
[1737034714504,0.28171394,709.94,707.91,0.86266542]
[1737034714700,0.28171394,709.94,707.92,0.86266542]
[1737034714901,0.28171394,709.94,707.87,3.12886096]
[1737034714902,0.28171394,709.94,707.93,0.86266542]
[1737034715101,0.28171394,709.94,707.94,0.86266542]
[1737034715300,0.28171394,709.94,707.95,0.86266542]
[1737034715501,0.28171394,709.94,707.96,0.25911102]
[1737034715701,0.28171394,709.94,707.97,0.25911102]
[1737034715899,0.28171394,709.94,707.93,3.12886096]
[1737034716099,0.28171394,709.94,707.94,0.86264887]
[1737034716304,0.28171394,709.94,707.95,0.2591059]
[1737034716504,0.28171394,709.94,707.96,0.2591059]
[1737034716701,0.28171394,709.94,707.95,0.60354297]
[1737034716702,0.28171394,709.94,707.97,0.2591059]
[1737034716917,0.28171394,709.94,707.98,0.2591059]
[1737034717206,0.28171394,709.94,707.99,0.2591059]
[1737034717502,0.28171394,709.94,708.0,0.2591059]
[1737034717700,1.03035621,711.05,708.01,0.2591059]
[1737034717905,0.28132956,710.91,708.02,0.2591059]
[1737034718104,0.28132956,710.91,708.03,0.2591059]
[1737034718303,0.28132956,710.91,708.04,0.2591059]
[1737034718507,0.28132956,710.91,708.05,0.2591059]
[1737034718700,0.28132956,710.91,707.9,0.6035665]
[1737034718905,0.28132956,710.91,707.91,0.25911697]
[1737034719106,0.28132956,710.91,707.92,0.25911697]
[1737034719403,0.28132956,710.91,707.93,0.86268347]
[1737034719706,0.28132956,710.91,707.94,0.86268347]
[1737034719901,0.28132956,710.91,707.95,3.98221909]
[1737034720105,0.28132956,710.91,707.96,0.86268347]
[1737034720305,0.28132956,710.91,707.97,0.25911697]
[1737034720506,0.28132956,710.91,707.98,0.25911697]
[1737034720806,0.28132956,710.91,707.99,0.25911697]
[1737034721008,0.28132956,710.91,708.0,0.25911697]
[1737034721207,0.28132956,710.91,708.01,0.86268347]
[1737034721408,0.28132956,710.91,707.85,0.28254573]
[1737034721409,0.28132956,710.91,708.02,0.86268347]
[1737034721607,0.28132956,710.91,708.03,0.86268078]
[1737034721804,0.28132956,710.91,708.04,0.86268078]
[1737034722007,0.28132956,710.91,708.05,0.86268078]
[1737034722207,0.28132956,710.91,708.02,3.11884716]
[1737034722406,0.28132956,710.91,708.03,0.8626655]
[1737034722607,0.28132956,710.91,708.04,0.8626655]
[1737034722808,0.28132956,710.91,708.02,3.11884716]
[1737034723009,0.28132956,710.91,707.85,0.28254573]
[1737034723312,0.28132956,710.91,707.86,3.11813996]
[1737034724110,0.28132956,710.91,707.87,1.57910579]
[1737034724412,0.28132956,710.91,707.93,1.04777435]
[1737034724612,0.28132956,710.91,707.94,3.46004357]
[1737034724815,0.28132956,710.91,707.94,3.11813996]
[1737034725006,0.28132956,710.91,707.94,3.37715745]
[1737034725207,0.28132956,710.91,707.95,0.2589963]
[1737034725420,0.28132956,710.91,708.02,1.04777435]
[1737034725611,0.28132956,710.91,708.03,0.60332064]
[1737034725913,0.28132956,710.91,708.04,0.2589963]
[1737034726110,0.28132956,710.91,708.05,0.2589963]
[1737034726307,0.28132956,710.91,708.06,0.2589963]
[1737034726508,0.28132956,710.91,708.07,0.2589963]
[1737034726708,0.28132956,710.91,708.08,0.2589963]
[1737034726910,0.28132956,710.91,708.09,0.2589963]
[1737034727110,0.28132956,710.91,708.1,0.2589963]
[1737034727307,0.28132956,710.91,708.05,0.60332064]
[1737034727514,0.28132956,710.91,708.07,1.04777435]
[1737034727707,0.28132956,710.91,708.08,0.86224634]
[1737034727908,0.28132956,710.91,708.09,3.71905477]
[1737034728109,0.28132956,710.91,708.1,0.862192]
[1737034728310,0.28132956,710.91,708.11,0.862192]
[1737034728509,0.28132956,710.91,708.12,0.862192]
[1737034728711,0.28132956,710.91,708.17,1.04777435]
[1737034728913,1.47103892,710.9,708.18,0.862192]
[1737034729117,1.47103892,710.9,708.19,0.25895574]
[1737034729417,1.47103892,710.9,708.2,0.25895574]
[1737034729614,1.47103892,710.9,708.21,0.25895574]
[1737034729818,1.47103892,710.9,708.22,0.25895574]
[1737034730116,1.47103892,710.9,708.23,0.25895574]
[1737034730310,1.47103892,710.9,708.24,0.25895574]
[1737034730515,1.47103892,710.9,708.25,0.25895574]
[1737034730715,1.47103892,710.9,708.26,0.25896012]
[1737034730910,1.47103892,710.9,708.27,1.30673447]
[1737034731117,1.47103892,710.9,708.28,0.86220448]
[1737034731311,1.47103892,710.9,708.29,0.25896012]
[1737034731513,1.47103892,710.9,708.3,0.25896012]
[1737034731717,1.47103892,710.9,708.31,0.25896012]
[1737034732013,1.47103892,710.9,708.32,0.25896012]
[1737034732212,1.47103892,710.9,708.35,1.04777435]
[1737034732418,1.47103892,710.9,708.36,0.86220448]
[1737034732719,1.47103892,710.9,708.37,0.25896012]
[1737034732918,1.47103892,710.9,708.38,0.25896012]
[1737034733121,1.47103892,710.9,708.39,0.25896012]
[1737034733316,1.47103892,710.9,708.4,0.25896012]
[1737034733516,1.47103892,710.9,708.22,0.60324436]
[1737034733715,1.47103892,710.9,708.41,0.25905388]
[1737034733917,1.47103892,710.9,708.21,1.04777435]
[1737034733918,1.47103892,710.9,708.42,0.25905388]
[1737034734117,1.47103892,710.9,708.43,0.25905388]
[1737034734418,1.47103892,710.9,708.19,1.197]
[1737034734419,1.47103892,710.9,708.44,0.25905388]
[1737034734621,1.47103892,710.9,708.2,0.25905388]
[1737034734822,1.47103892,710.9,708.21,0.25905388]
[1737034735120,1.47103892,710.9,708.22,0.25905388]
[1737034735420,1.47103892,710.9,708.23,0.25905388]
[1737034735621,1.03035621,710.57,708.24,0.25905388]
[1737034735820,1.03035621,710.57,708.25,0.25905388]
[1737034736022,1.03035621,710.57,708.26,0.25905388]
[1737034736221,1.03035621,710.57,708.27,0.25905388]
[1737034736417,1.03035621,710.57,708.19,2.24477435]
[1737034736727,1.03035621,710.82,708.19,2.24477435]
[1737034736728,1.03035621,710.51,708.27,1.04777435]
[1737034736922,1.03035621,710.51,708.28,0.8624896]
[1737034737127,1.03035621,710.51,708.29,0.25905322]
[1737034737326,1.03035621,710.51,708.3,0.25905322]
[1737034737531,1.03035621,710.47,708.53,1.04777435]
[1737034737832,1.03035621,710.47,708.54,0.8624896]
[1737034738031,1.03035621,710.47,708.55,0.25905322]
[1737034738331,1.03035621,710.47,708.56,0.25905322]
[1737034738531,1.03035621,710.48,708.62,1.04777435]
[1737034738732,1.03035621,710.48,708.63,0.8624896]
[1737034738932,1.03035621,710.48,708.64,0.25905322]
[1737034739133,1.03035621,710.48,708.65,0.25905322]
[1737034739429,1.03035621,710.48,708.62,1.04777435]
[1737034739430,1.03035621,710.48,708.66,0.25901725]
[1737034739635,1.03035621,710.46,708.69,1.04777435]
[1737034739833,1.03035621,710.46,708.7,0.8623789]
[1737034740030,1.03035621,710.46,708.71,0.86237179]
[1737034740328,1.03035621,710.46,708.72,0.86237179]
[1737034740534,1.03035621,710.46,708.73,0.25901493]
[1737034740736,1.03035621,710.44,708.74,1.04777435]
[1737034741033,1.03035621,710.44,708.75,0.86237179]
[1737034741238,1.03035621,710.44,708.76,0.25901493]
[1737034741536,1.03035621,710.44,708.77,0.25901493]
[1737034741735,1.94873928,710.9,708.82,1.04777435]
[1737034741736,1.03035621,710.4,708.82,1.04777435]
[1737034742035,1.03035621,710.4,708.83,0.86237179]
[1737034742229,1.03035621,710.4,708.84,0.25901493]
[1737034742434,1.03035621,710.4,708.85,0.25901493]
[1737034742635,1.03035621,710.4,708.86,0.25901493]
[1737034742835,1.03035621,710.55,708.93,1.04777435]
[1737034743132,1.03035621,710.55,708.94,0.86237179]
[1737034743330,1.03035621,710.55,708.95,0.25901493]
[1737034743535,1.03035621,710.55,708.96,0.25901493]
[1737034743833,1.03035621,710.55,708.97,0.25901493]
[1737034744035,1.03035621,710.55,708.91,1.04777435]
[1737034744235,1.03035621,710.55,708.92,0.25897405]
[1737034744737,1.03035621,710.55,708.93,0.25897405]
[1737034744936,1.03035621,710.55,708.94,0.25897405]
[1737034745237,1.03035621,710.67,708.95,0.25897405]
[1737034745430,1.03035621,710.67,708.96,0.25897405]
[1737034745631,1.03035621,710.67,708.97,0.25897405]
[1737034745834,1.03035621,710.67,708.98,0.25897405]
[1737034746037,1.03035621,710.67,708.99,0.25897405]
[1737034746237,1.03035621,710.67,709.0,0.25897405]
[1737034746434,1.03035621,710.67,708.77,1.04777435]
[1737034746435,1.03035621,710.55,709.01,0.25897405]
[1737034746631,1.03035621,710.55,709.02,0.25897405]
[1737034746832,1.03035621,710.55,709.03,0.25897405]
[1737034747037,1.03035621,710.55,709.04,0.25901612]
[1737034747341,1.03035621,710.55,708.36,1.04777435]
[1737034747342,1.03035621,710.43,709.05,0.25901612]
[1737034747640,1.03035621,710.43,709.06,0.2590211]
[1737034747941,1.03035621,710.43,708.76,0.60336923]
[1737034747942,1.03035621,710.43,709.07,0.2590211]
[1737034748143,1.03035621,710.43,709.08,0.2590211]
[1737034748342,1.03035621,710.43,709.09,0.2590211]
[1737034748639,0.71547478,710.9,709.1,0.2590211]
[1737034748640,1.03035621,710.38,709.1,0.2590211]
[1737034749035,1.03035621,710.38,709.11,0.2590211]
[1737034749340,1.03035621,710.38,709.12,0.2590211]
[1737034749537,1.03035621,710.5,709.12,0.2590211]
[1737034749841,1.03035621,710.5,709.13,0.2590211]
[1737034750042,1.03035621,710.5,709.13,0.25898195]
[1737034750541,1.03035621,710.55,709.13,0.25898195]
[1737034751442,1.03035621,710.5,709.12,1.513]
[1737034752636,1.47105965,710.52,709.12,1.513]
[1737034753640,1.03035621,710.4,709.12,1.513]
[1737034754947,1.03035621,710.45,709.12,1.513]
[1737034756147,1.47105965,710.52,709.12,1.513]
[1737034756148,1.03035621,709.98,709.12,1.513]
[1737034757547,1.03035621,709.96,709.12,1.513]
[1737034759742,1.03035621,710.04,709.12,1.513]
[1737034760344,1.03035621,710.09,709.12,1.513]
[1737034760745,0.71598476,710.51,709.12,1.513]
[1737034761541,1.0316125,710.25,709.12,1.513]
[1737034762547,1.237935,710.83,709.12,1.513]
[1737034762548,1.0316125,710.33,709.12,1.513]
[1737034763146,0.2815672,710.31,709.12,1.513]
[1737034769251,0.2815672,710.31,709.13,0.25903199]
[1737034769451,0.2815672,710.31,708.35,1.04707496]
[1737034769650,0.2815672,710.31,708.36,7.5384909]
[1737034769845,0.2815672,710.31,708.57,1.04707496]
[1737034770045,0.2815672,710.31,708.58,0.86242091]
[1737034770251,0.2815672,710.31,708.59,0.25903109]
[1737034770451,0.2815672,710.31,708.57,1.04707496]
[1737034770653,0.2815672,710.31,708.58,0.86240438]
[1737034770955,0.2815672,710.31,708.6,1.04707496]
[1737034771147,0.2815672,710.31,708.61,0.86240438]
[1737034771447,0.2815672,710.31,708.62,0.25902572]
[1737034771646,0.2815672,710.31,708.63,0.25902572]
[1737034771851,0.2815672,710.31,708.64,0.25902572]
[1737034772053,0.2815672,710.31,708.65,0.25902572]
[1737034772354,0.2815672,710.31,708.66,0.25902572]
[1737034772553,0.2815672,710.31,708.67,0.25902572]
[1737034772753,0.2815672,710.31,708.66,0.86240438]
[1737034772954,0.2815672,710.31,708.67,0.25902572]
[1737034773154,0.2815672,710.31,708.57,2.29307496]
[1737034774253,0.2815672,710.31,708.58,0.25902073]
[1737034774552,0.2815672,710.31,708.59,0.25899721]
[1737034774748,0.2815672,710.31,708.59,0.51799342]
[1737034774951,0.2815672,710.31,708.6,0.25898584]
[1737034777156,0.2815672,710.31,708.61,0.25897639]
[1737034777352,0.2815672,710.31,708.62,0.25897639]
[1737034777656,0.2815672,710.31,708.63,0.25897639]
[1737034777856,0.2815672,710.31,708.6,0.25897639]
[1737034778050,0.2815672,710.31,708.61,0.25897639]
[1737034778252,0.2815672,710.31,708.62,0.25897639]
[1737034778556,0.2815672,710.31,708.63,0.25897639]
[1737034778855,0.2815672,710.31,708.64,0.25897639]
[1737034779057,0.2815672,710.31,708.65,0.25897639]
[1737034779256,0.2815672,710.31,708.66,0.25897639]
[1737034779457,0.2815672,710.31,708.67,0.25897639]
[1737034779657,0.2815672,710.31,708.68,0.25897639]
[1737034779859,0.2815672,710.31,708.59,0.51799342]
[1737034780059,0.2815672,710.31,708.6,0.25901484]
[1737034780259,0.2815672,710.31,708.61,0.25901484]
[1737034780459,0.2815672,710.31,708.62,0.25901484]
[1737034780663,0.2815672,710.31,708.63,0.25901484]
[1737034781160,0.2815672,710.31,708.64,0.25901484]
[1737034781360,0.2815672,710.31,708.65,0.25901484]
[1737034781660,0.2815672,710.31,708.66,0.25901484]
[1737034781864,0.2815672,710.31,708.6,0.25901484]
[1737034782054,0.2815672,710.31,708.61,0.25901484]
[1737034782253,0.2815672,710.31,708.62,0.25901484]
[1737034782459,0.2815672,710.31,708.63,0.25901484]
[1737034782661,0.2815672,710.31,708.64,0.25907128]
[1737034782856,0.2815672,710.31,708.58,0.25907128]
[1737034783055,0.2815672,710.31,708.65,0.25907128]
[1737034783261,0.2815672,710.31,708.66,0.25907128]
[1737034783459,0.2815672,710.31,708.58,0.8625062]
[1737034783661,0.2815672,710.31,708.67,0.25906595]
[1737034783859,0.2815672,710.31,708.59,0.86245351]
[1737034784059,0.2815672,710.31,708.6,0.86245351]
[1737034784258,0.2815672,710.31,708.61,0.86245351]
[1737034784458,0.2815672,710.31,708.62,0.25906595]
[1737034784655,0.2815672,710.31,708.63,0.25906595]
[1737034784962,0.2815672,710.31,708.64,0.25906595]
[1737034785155,0.2815672,710.31,708.59,0.25906595]
[1737034785356,0.2815672,710.31,708.6,0.25906595]
[1737034785555,0.2815672,710.31,708.61,0.2590324]
[1737034785858,0.2815672,710.31,708.62,0.2590324]
[1737034786161,0.2815672,710.31,708.63,0.2590324]
[1737034786361,0.2815672,710.31,708.64,0.2590324]
[1737034786661,0.2815672,710.31,708.65,0.2590324]
[1737034786862,0.2815672,710.31,708.66,0.2590324]
[1737034787160,0.2815672,710.31,708.68,0.28221482]
[1737034787355,0.2815672,710.31,708.69,0.2590324]
[1737034787558,0.2815672,710.31,708.69,0.60338614]
[1737034787761,0.2815672,710.31,708.7,0.2590324]
[1737034787960,0.2815672,710.31,708.71,0.2590324]
[1737034788156,0.2815672,710.31,708.72,0.2590324]
[1737034788357,0.2815672,710.31,708.73,0.25902743]
[1737034788564,0.2815672,710.31,708.69,0.25902743]
[1737034788862,0.2815672,710.31,708.7,0.25902368]
[1737034789060,0.2815672,710.31,708.69,0.25902368]
[1737034789262,0.2815672,710.31,708.7,0.25902368]
[1737034789462,0.2815672,710.31,708.71,0.25902368]
[1737034789763,0.2815672,710.31,708.72,0.25902368]
[1737034789963,0.2815672,710.31,708.73,0.25902368]
[1737034790165,0.2815672,710.31,708.74,0.25902368]
[1737034790462,0.2815672,710.31,708.75,0.25902368]
[1737034790665,0.2815672,710.31,708.76,0.25902368]
[1737034790967,0.2815672,710.31,708.69,0.6033635]
[1737034791266,0.2815672,710.31,708.7,0.86232213]
[1737034791564,0.2815672,710.31,708.71,0.86232213]
[1737034791765,0.2815672,710.31,708.68,0.28221482]
[1737034791766,0.2815672,710.31,708.72,0.8622737]
[1737034791960,0.2815672,710.31,708.73,4.02812214]
[1737034792163,0.2815672,710.31,708.74,0.8622737]
[1737034792358,0.2815672,710.31,708.75,0.25898276]
[1737034792557,0.2815672,710.31,708.76,0.25898276]
[1737034792763,0.2815672,710.31,708.77,0.25898276]
[1737034793065,0.2815672,710.31,708.85,1.04707496]
[1737034793266,0.2815672,710.31,708.86,0.8622737]
[1737034793463,0.2815672,710.31,708.87,0.25898276]
[1737034793864,0.2815672,710.31,708.86,0.8622737]
[1737034794066,0.2815672,710.31,708.85,1.04707496]
[1737034794067,0.2815672,710.31,708.87,0.25898276]
[1737034794261,0.2815672,710.31,708.86,0.25898276]
[1737034794463,0.2815672,710.31,708.87,0.25898276]
[1737034794665,0.2815672,710.31,708.88,0.25898276]
[1737034794859,0.2815672,710.31,708.89,0.25898276]
[1737034795066,0.2815672,710.31,708.9,0.25898276]
[1737034795266,0.2815672,710.31,708.91,0.25898276]
[1737034795462,0.2815672,710.31,708.92,0.25898276]
[1737034795667,0.2815672,710.31,708.93,0.25898276]
[1737034795867,0.2815672,710.31,708.94,0.25898276]
[1737034796067,0.2815672,710.31,708.95,0.25898276]
[1737034796262,0.2815672,710.31,708.96,0.25898276]
[1737034796463,0.2815672,710.31,708.97,0.25898276]
[1737034796767,0.2815672,710.31,708.79,1.04707496]
[1737034796967,0.2815672,710.31,708.8,0.25904317]
[1737034797562,0.2815672,710.31,708.68,0.28221482]
[1737034797762,0.2815672,710.31,708.69,0.25908228]
[1737034798570,1.0316125,710.1,708.69,0.25908228]
[1737034799274,1.0316125,710.1,708.68,0.28221482]
[1737034799571,1.0316125,710.1,708.69,0.25911273]
[1737034799770,1.0316125,710.0,708.69,0.25911273]
[1737034799964,1.0316125,710.0,708.68,0.28221482]
[1737034800172,1.0316125,710.0,708.69,0.25910935]
[1737034800666,1.0316125,710.01,708.7,0.28220685]
[1737034801166,1.0316125,710.01,708.71,0.86259377]
[1737034801373,1.0316125,710.01,708.72,0.86247955]
[1737034801574,1.0316125,710.1,708.85,1.04707496]
[1737034801772,1.0316125,710.1,708.86,0.25904993]
[1737034802975,1.0316125,710.12,708.87,1.04707496]
[1737034803176,1.0316125,710.12,708.88,0.25904993]
[1737034804370,1.0316125,710.12,708.87,1.04707496]
[1737034804371,1.0316125,710.12,708.89,0.25904044]
[1737034804571,1.0316125,710.12,708.88,0.25904044]
[1737034805077,1.0316125,710.18,708.96,1.04707496]
[1737034805270,1.0316125,710.18,708.97,0.25904044]
[1737034806375,1.0316125,710.08,708.97,0.25904044]
[1737034806574,1.0316125,710.08,708.98,0.25904044]
[1737034806774,1.0316125,710.08,708.99,0.25904044]
[1737034806973,1.0316125,710.08,709.0,0.25904044]
[1737034807277,1.0316125,710.08,708.85,1.547]
[1737034807472,1.0316125,710.08,708.86,0.25902755]
[1737034807774,1.0316125,710.08,708.87,0.25904219]
[1737034807978,1.0316125,710.08,708.86,0.25904219]
[1737034808476,1.0316125,710.22,708.86,0.25904219]
[1737034809375,1.0316125,710.22,708.86,0.8623239]
[1737034809780,1.0316125,710.22,708.87,0.25904219]
[1737034809976,1.3131797,710.31,708.89,1.04707496]
[1737034810280,1.3131797,710.31,708.9,0.8623239]
[1737034811080,1.3131797,710.31,708.85,1.547]
[1737034811081,0.2815672,710.31,709.07,1.04707496]
[1737034811781,0.2815672,710.31,709.08,0.25889915]
[1737034812082,1.0316125,710.45,709.08,0.25889915]
[1737034812283,1.0316125,711.01,709.08,0.25889915]
[1737034812483,0.2812979,710.99,709.09,0.25889915]
[1737034812678,0.2812979,710.99,709.1,0.25889915]
[1737034812882,0.2812979,710.99,709.11,0.25889915]
[1737034813084,1.47062449,710.98,708.71,1.04707496]
[1737034813287,1.47062449,710.98,709.12,0.25890109]
[1737034813487,1.47062449,710.98,709.13,0.25890109]
[1737034813689,1.0316125,710.75,709.01,1.04707496]
[1737034813882,1.0316125,710.75,709.02,0.60311869]
[1737034814186,1.0316125,710.75,709.03,0.25890109]
[1737034814380,1.0316125,710.75,709.04,0.25890109]
[1737034814686,1.0316125,710.75,709.05,0.25890109]
[1737034814886,1.0316125,710.74,709.18,1.04707496]
[1737034815086,1.0316125,710.74,709.19,0.25890109]
[1737034815881,1.0316125,710.74,709.2,0.2588753]
[1737034816084,1.0316125,710.74,709.19,0.86194546]
[1737034816288,1.0316125,710.85,709.2,0.2588753]
[1737034816487,1.0316125,710.85,709.21,0.2588753]
[1737034816687,1.0316125,710.85,709.21,0.86194546]
[1737034816887,1.0316125,710.85,709.22,0.86194546]
[1737034817089,1.0316125,710.85,709.23,0.86194546]
[1737034817290,1.0316125,710.79,709.24,0.86194546]
[1737034817590,1.0316125,710.79,709.25,0.2588753]
[1737034817889,1.0316125,710.79,709.26,0.2588753]
[1737034818089,1.0316125,710.8,709.27,0.2588753]
[1737034818289,1.0316125,710.8,709.28,0.2588753]
[1737034818491,1.0316125,710.8,709.29,0.2588753]
[1737034818685,1.0316125,710.8,709.18,0.60306984]
[1737034818686,1.0316125,710.8,709.13,1.04707496]
[1737034818890,1.0316125,710.8,709.14,0.86193506]
[1737034819093,1.0316125,710.8,709.15,0.25887194]